Body Name,Body,Transaction Date,Value,Supplier,Description,Purchase Type,Cost Center,Department,Section
South Ribble Council,http://Statistics.Data.gov.uk\Doc\Local Authority\30UN,06/07/2023,483.00,Winckley Square Residences PR1 3NA,NAME REDACTED Winckley Square Residences PR,Accomodation,124050,COMU - Communities,JBC - Homelessness
South Ribble Council,http://Statistics.Data.gov.uk\Doc\Local Authority\30UN,07/07/2023,651.00,Holiday Inn Express Preston South PR58AA,NAME REDACTED Holiday Inn Express Preston S,Accomodation,124050,COMU - Communities,JBC - Homelessness
South Ribble Council,http://Statistics.Data.gov.uk\Doc\Local Authority\30UN,11/07/2023,600.00,Beacon Fell View Holiday Park,NAME REDACTED Beacon Fell View Holiday Park,Accomodation,124050,COMU - Communities,JBC - Homelessness
South Ribble Council,http://Statistics.Data.gov.uk\Doc\Local Authority\30UN,17/07/2023,483.00,Winckley Square Residences PR1 3NA,NAME REDACTED Winckley Square Residences PR,Accomodation,124050,COMU - Communities,JBC - Homelessness
South Ribble Council,http://Statistics.Data.gov.uk\Doc\Local Authority\30UN,17/07/2023,534.40,Travelodge Preston Central PR1 5NX,NAME REDACTED Travelodge Preston Central PR,Accomodation,124050,COMU - Communities,JBC - Homelessness
South Ribble Council,http://Statistics.Data.gov.uk\Doc\Local Authority\30UN,17/07/2023,634.50,Premier Inn Preston South PR5 6BZ,NAME REDACTED Premier Inn Preston South PR5,Accomodation,124050,COMU - Communities,JBC - Homelessness
South Ribble Council,http://Statistics.Data.gov.uk\Doc\Local Authority\30UN,17/07/2023,653.50,Premier Inn Preston South PR5 6BZ,NAME REDACTED Premier Inn Preston South PR5,Accomodation,124050,COMU - Communities,JBC - Homelessness
South Ribble Council,http://Statistics.Data.gov.uk\Doc\Local Authority\30UN,17/07/2023,664.00,Premier Inn Preston North PR3 0RE,NAME REDACTED Premier Inn Preston North PR3,Accomodation,124050,COMU - Communities,JBC - Homelessness
South Ribble Council,http://Statistics.Data.gov.uk\Doc\Local Authority\30UN,17/07/2023,"1,269.00",Premier Inn Preston South PR5 6BZ,NAME REDACTED and JT Premier Inn Preston So,Accomodation,124050,COMU - Communities,JBC - Homelessness
South Ribble Council,http://Statistics.Data.gov.uk\Doc\Local Authority\30UN,18/07/2023,614.50,Premier Inn Preston Central PR1 2AB,NAME REDACTED Premier Inn Preston Central P,Accomodation,124050,COMU - Communities,JBC - Homelessness
South Ribble Council,http://Statistics.Data.gov.uk\Doc\Local Authority\30UN,20/07/2023,-270.00,Premier Inn Preston North PR3 0RE,NAME REDACTED und - AW Premier Inn Preston ,Accomodation,124050,COMU - Communities,JBC - Homelessness
South Ribble Council,http://Statistics.Data.gov.uk\Doc\Local Authority\30UN,20/07/2023,42.82,Travelodge Preston Central PR1 5NX,NAME REDACTED Travelodge Preston Central PR,Accomodation,124050,COMU - Communities,JBC - Homelessness
South Ribble Council,http://Statistics.Data.gov.uk\Doc\Local Authority\30UN,20/07/2023,288.62,Travelodge Preston Central PR1 5NX,NAME REDACTED Travelodge Preston Central PR,Accomodation,124050,COMU - Communities,JBC - Homelessness
South Ribble Council,http://Statistics.Data.gov.uk\Doc\Local Authority\30UN,20/07/2023,520.00,ibis Preston North PR3 5JE,NAME REDACTED ibis Preston North PR3 5JE 20,Accomodation,124050,COMU - Communities,JBC - Homelessness
South Ribble Council,http://Statistics.Data.gov.uk\Doc\Local Authority\30UN,20/07/2023,520.00,ibis Preston North PR3 5JE,NAME REDACTED ibis Preston North PR3 5JE 20,Accomodation,124050,COMU - Communities,JBC - Homelessness
South Ribble Council,http://Statistics.Data.gov.uk\Doc\Local Authority\30UN,20/07/2023,520.00,ibis Preston North PR3 5JE,NAME REDACTED ibis Preston North PR3 5JE 20,Accomodation,124050,COMU - Communities,JBC - Homelessness
South Ribble Council,http://Statistics.Data.gov.uk\Doc\Local Authority\30UN,21/07/2023,-731.00,Holiday Inn Express Preston South,refund from Holiday Inn Express Preston South,Refund,124050,COMU - Communities,JBC - Homelessness
South Ribble Council,http://Statistics.Data.gov.uk\Doc\Local Authority\30UN,21/07/2023,675.00,Holiday Inn Express Preston South PR58AA,NAME REDACTED Holiday Inn Express Preston S,Accomodation,124050,COMU - Communities,JBC - Homelessness
South Ribble Council,http://Statistics.Data.gov.uk\Doc\Local Authority\30UN,21/07/2023,721.00,Holiday Inn Express Preston South PR58AA,NAME REDACTED Holiday Inn Express Preston S,Accomodation,124050,COMU - Communities,JBC - Homelessness
South Ribble Council,http://Statistics.Data.gov.uk\Doc\Local Authority\30UN,21/07/2023,731.00,Holiday Inn Express Preston South PR58AA,NAME REDACTED Holiday Inn Express Preston S,Accomodation,124050,COMU - Communities,JBC - Homelessness
South Ribble Council,http://Statistics.Data.gov.uk\Doc\Local Authority\30UN,24/07/2023,75.46,Travelodge Preston Central PR1 5NX,NAME REDACTED Travelodge Preston Central PR,Accomodation,124050,COMU - Communities,JBC - Homelessness
South Ribble Council,http://Statistics.Data.gov.uk\Doc\Local Authority\30UN,24/07/2023,282.20,Premier Inn Preston Central PR1 2AB,NAME REDACTED Premier Inn Preston Central P,Accomodation,124050,COMU - Communities,JBC - Homelessness
South Ribble Council,http://Statistics.Data.gov.uk\Doc\Local Authority\30UN,25/07/2023,"1,400.00",Harrison Holidays - Riverside Holiday Pk,NAME REDACTED Riverside Holiday Park PR9 8D,Accomodation,124050,COMU - Communities,JBC - Homelessness
South Ribble Council,http://Statistics.Data.gov.uk\Doc\Local Authority\30UN,26/07/2023,113.15,Tesco,"Tesco Online Groceries Order for Delivery (26.07.23) to Cotswold House, Chorley (rough sleeper provision supplies, food, drink) ",Store Purchase,124250,COMU - Communities,JBC - Homelessness
South Ribble Council,http://Statistics.Data.gov.uk\Doc\Local Authority\30UN,27/07/2023,570.00,ibis Preston North PR3 5JE,NAME REDACTED ibis Preston North PR3 5JE 27,Accomodation,124050,COMU - Communities,JBC - Homelessness
South Ribble Council,http://Statistics.Data.gov.uk\Doc\Local Authority\30UN,27/07/2023,717.00,Holiday Inn Express Preston South PR58AA,NAME REDACTED Holiday Inn Express Preston S,Accomodation,124050,COMU - Communities,JBC - Homelessness
South Ribble Council,http://Statistics.Data.gov.uk\Doc\Local Authority\30UN,27/07/2023,"1,535.91",Travelodge Preston Central PR1 5NX,NAME REDACTED and JT Travelodge Preston Cen,Accomodation,124050,COMU - Communities,JBC - Homelessness
South Ribble Council,http://Statistics.Data.gov.uk\Doc\Local Authority\30UN,28/07/2023,299.00,Holiday Inn Express Preston South PR58AA,Holiday Inn Express Preston South PR5 8AA,Accomodation,124050,COMU - Communities,JBC - Homelessness
South Ribble Council,http://Statistics.Data.gov.uk\Doc\Local Authority\30UN,01/08/2023,555.00,ibis Preston North PR3 5JE,NAME REDACTED ibis Preston North PR3 5JE 01,Accomodation,124050,COMU - Communities,JBC - Homelessness
South Ribble Council,http://Statistics.Data.gov.uk\Doc\Local Authority\30UN,03/08/2023,191.35,ibis Preston North PR3 5JE,NAME REDACTED ibis Preston North PR3 5JE 11,Accomodation,124050,COMU - Communities,JBC - Homelessness
South Ribble Council,http://Statistics.Data.gov.uk\Doc\Local Authority\30UN,03/08/2023,682.00,Holiday Inn Express Preston South PR58AA,NAME REDACTED Holiday Inn Express Preston S,Accomodation,124050,COMU - Communities,JBC - Homelessness
South Ribble Council,http://Statistics.Data.gov.uk\Doc\Local Authority\30UN,04/08/2023,483.00,Winckley Square Residences PR1 3NA,NAME REDACTED Winckley Square Residences PR,Accomodation,124050,COMU - Communities,JBC - Homelessness
South Ribble Council,http://Statistics.Data.gov.uk\Doc\Local Authority\30UN,04/08/2023,550.00,ibis Preston North PR3 5JE,NAME REDACTED ibis Preston North PR3 5JE 04,Accomodation,124050,COMU - Communities,JBC - Homelessness
South Ribble Council,http://Statistics.Data.gov.uk\Doc\Local Authority\30UN,07/08/2023,120.00,ibis Preston North PR3 5JE,NAME REDACTED ibis Preston North PR3 5JE 07,Accomodation,124250,COMU - Communities,JBC - Homelessness
South Ribble Council,http://Statistics.Data.gov.uk\Doc\Local Authority\30UN,10/08/2023,497.00,Holiday Inn Express Preston South PR58AA,NAME REDACTED Holiday Inn Express Preston S,Accomodation,124050,COMU - Communities,JBC - Homelessness
South Ribble Council,http://Statistics.Data.gov.uk\Doc\Local Authority\30UN,15/08/2023,109.00,Holiday Inn Express Preston South PR58AA,NAME REDACTED Holiday Inn Express Preston S,Accomodation,124050,COMU - Communities,JBC - Homelessness
South Ribble Council,http://Statistics.Data.gov.uk\Doc\Local Authority\30UN,29/08/2023,600.00,BeaconFell View,NAME REDACTED Beacon Fell View PR3 2TF 29/8,Accomodation,124050,COMU - Communities,JBC - Homelessness
South Ribble Council,http://Statistics.Data.gov.uk\Doc\Local Authority\30UN,11/09/2023,651.00,Holiday Inn Express,NAME REDACTED Holiday Inn Ex Preston South ,Accomodation,124050,COMU - Communities,JBC - Homelessness
South Ribble Council,http://Statistics.Data.gov.uk\Doc\Local Authority\30UN,11/09/2023,"1,200.00",BeaconFell View,NAME REDACTED Beacon Fell View PR3 2TF 11/9,Accomodation,124050,COMU - Communities,JBC - Homelessness
South Ribble Council,http://Statistics.Data.gov.uk\Doc\Local Authority\30UN,04/07/2023,71.00,Travelodge Preston Central PR1 5NX,NAME REDACTED Travelodge Preston Central PR,Accomodation,124050,COMU - Communities,JBC - Homelessness
South Ribble Council,http://Statistics.Data.gov.uk\Doc\Local Authority\30UN,04/07/2023,283.05,Premier Inn Preston North PR3 0RE,NAME REDACTED Premier Inn Preston North PR3,Accomodation,124050,COMU - Communities,JBC - Homelessness
South Ribble Council,http://Statistics.Data.gov.uk\Doc\Local Authority\30UN,04/07/2023,515.02,Travelodge Preston Central PR1 5NX,NAME REDACTED Travelodge Preston Central PR,Accomodation,124050,COMU - Communities,JBC - Homelessness
South Ribble Council,http://Statistics.Data.gov.uk\Doc\Local Authority\30UN,05/07/2023,91.80,Premier Inn Preston South (Craven Drive),NAME REDACTED Premier Inn Preston South (Cr,Accomodation,124250,COMU - Communities,JBC - Homelessness
South Ribble Council,http://Statistics.Data.gov.uk\Doc\Local Authority\30UN,05/07/2023,91.80,Premier Inn Preston South (Craven Drive),NAME REDACTED Premier Inn Preston South (Cr,Accomodation,124250,COMU - Communities,JBC - Homelessness
South Ribble Council,http://Statistics.Data.gov.uk\Doc\Local Authority\30UN,05/07/2023,489.52,Travelodge Preston Central PR1 5NX,NAME REDACTED Travelodge Preston Central PR,Accomodation,124050,COMU - Communities,JBC - Homelessness
South Ribble Council,http://Statistics.Data.gov.uk\Doc\Local Authority\30UN,06/07/2023,79.05,Premier Inn Preston South (Craven Drive),NAME REDACTED Premier Inn Preston South (Cr,Accomodation,124250,COMU - Communities,JBC - Homelessness
South Ribble Council,http://Statistics.Data.gov.uk\Doc\Local Authority\30UN,06/07/2023,530.00,Premier Inn Bolton Stadium Arena BL6 6LB,NAME REDACTED Premier Inn Bolton Stadium Ar,Accomodation,124050,COMU - Communities,JBC - Homelessness
South Ribble Council,http://Statistics.Data.gov.uk\Doc\Local Authority\30UN,06/07/2023,531.34,Travelodge Preston Central PR1 5NX,NAME REDACTED Travelodge Preston Central PR,Accomodation,124050,COMU - Communities,JBC - Homelessness
South Ribble Council,http://Statistics.Data.gov.uk\Doc\Local Authority\30UN,06/07/2023,615.00,Premier Inn Preston North PR3 0RE,NAME REDACTED Premier Inn Preston North PR3,Accomodation,124050,COMU - Communities,JBC - Homelessness
South Ribble Council,http://Statistics.Data.gov.uk\Doc\Local Authority\30UN,07/07/2023,213.35,Premier Inn Blackburn South M65 Jct 4,NAME REDACTED Premier Inn Blackburn South M,Accomodation,124050,COMU - Communities,JBC - Homelessness
South Ribble Council,http://Statistics.Data.gov.uk\Doc\Local Authority\30UN,07/07/2023,279.00,Holiday Inn Express Preston South PR58AA,NAME REDACTED Holiday Inn Express Preston S,Accomodation,124050,COMU - Communities,JBC - Homelessness
South Ribble Council,http://Statistics.Data.gov.uk\Doc\Local Authority\30UN,07/07/2023,550.50,Premier Inn Blackburn South M65 Jct 4,NAME REDACTED Premier Inn Blackburn South M,Accomodation,124050,COMU - Communities,JBC - Homelessness
South Ribble Council,http://Statistics.Data.gov.uk\Doc\Local Authority\30UN,10/07/2023,72.25,Premier Inn Wigan M6 Jct 27 WN6 0SS,NAME REDACTED Premier Inn Wigan M6 Jct 27 W,Accomodation,124250,COMU - Communities,JBC - Homelessness
South Ribble Council,http://Statistics.Data.gov.uk\Doc\Local Authority\30UN,10/07/2023,631.00,Premier Inn Preston South PR5 6BZ,NAME REDACTED Premier Inn Preston South PR5,Accomodation,124050,COMU - Communities,JBC - Homelessness
South Ribble Council,http://Statistics.Data.gov.uk\Doc\Local Authority\30UN,11/07/2023,537.46,Travelodge Preston Central PR1 5NX,NAME REDACTED Travelodge Preston Central PR,Accomodation,124050,COMU - Communities,JBC - Homelessness
South Ribble Council,http://Statistics.Data.gov.uk\Doc\Local Authority\30UN,11/07/2023,556.50,Premier Inn Blackburn Town Centre BB11FB,NAME REDACTED Premier Inn Blackburn Town Ce,Accomodation,124050,COMU - Communities,JBC - Homelessness
South Ribble Council,http://Statistics.Data.gov.uk\Doc\Local Authority\30UN,13/07/2023,67.15,Premier Inn Chorley North PR6 8AB,NAME REDACTED Premier Inn Chorley North PR6,Accomodation,124050,COMU - Communities,JBC - Homelessness
South Ribble Council,http://Statistics.Data.gov.uk\Doc\Local Authority\30UN,13/07/2023,77.35,Premier Inn Preston South (Craven Drive),NAME REDACTED Premier Inn Preston South (Cr,Accomodation,124050,COMU - Communities,JBC - Homelessness
South Ribble Council,http://Statistics.Data.gov.uk\Doc\Local Authority\30UN,13/07/2023,433.42,Travelodge Preston Central PR1 5NX,NAME REDACTED Travelodge Preston Central PR,Accomodation,124050,COMU - Communities,JBC - Homelessness
South Ribble Council,http://Statistics.Data.gov.uk\Doc\Local Authority\30UN,13/07/2023,590.00,Premier Inn Preston Central PR1 2AB,NAME REDACTED Premier Inn Preston Central P,Accomodation,124050,COMU - Communities,JBC - Homelessness
South Ribble Council,http://Statistics.Data.gov.uk\Doc\Local Authority\30UN,13/07/2023,600.00,Premier Inn Preston South (Craven Drive),NAME REDACTED Premier Inn Preston South (Cr,Accomodation,124050,COMU - Communities,JBC - Homelessness
South Ribble Council,http://Statistics.Data.gov.uk\Doc\Local Authority\30UN,13/07/2023,631.50,Premier Inn Preston South (Craven Drive),NAME REDACTED Premier Inn Preston South (Cr,Accomodation,124050,COMU - Communities,JBC - Homelessness
South Ribble Council,http://Statistics.Data.gov.uk\Doc\Local Authority\30UN,14/07/2023,103.18,Bookers,SRBC Community Development Team purchase at Bookers 14/07/24,Store Purchase,114800,COMU - Communities,JBC - Homelessness
South Ribble Council,http://Statistics.Data.gov.uk\Doc\Local Authority\30UN,14/07/2023,210.80,Premier Inn Preston South PR5 6BZ,NAME REDACTED Premier Inn Preston South PR5,Accomodation,124050,COMU - Communities,JBC - Homelessness
South Ribble Council,http://Statistics.Data.gov.uk\Doc\Local Authority\30UN,17/07/2023,366.35,Premier Inn Preston South PR5 6BZ,NAME REDACTED Premier Inn Preston South PR5,Accomodation,124050,COMU - Communities,JBC - Homelessness
South Ribble Council,http://Statistics.Data.gov.uk\Doc\Local Authority\30UN,18/07/2023,71.38,Travelodge Preston Central PR1 5NX,NAME REDACTED Travelodge Preston Central PR,Accomodation,124250,COMU - Communities,JBC - Homelessness
South Ribble Council,http://Statistics.Data.gov.uk\Doc\Local Authority\30UN,18/07/2023,167.25,Travelodge Preston Central PR1 5NX,NAME REDACTED Travelodge Preston Central PR,Accomodation,124050,COMU - Communities,JBC - Homelessness
South Ribble Council,http://Statistics.Data.gov.uk\Doc\Local Authority\30UN,18/07/2023,654.75,Holiday Inn Express Preston South PR58AA,NAME REDACTED Holiday Inn Express Preston S,Accomodation,124050,COMU - Communities,JBC - Homelessness
South Ribble Council,http://Statistics.Data.gov.uk\Doc\Local Authority\30UN,19/07/2023,91.80,Premier Inn Preston South (Craven Drive),NAME REDACTED Premier Inn Preston South (Cr,Accomodation,124050,COMU - Communities,JBC - Homelessness
South Ribble Council,http://Statistics.Data.gov.uk\Doc\Local Authority\30UN,19/07/2023,337.00,Holiday Inn Express Preston South PR58AA,NAME REDACTED Holiday Inn Express Preston S,Accomodation,124050,COMU - Communities,JBC - Homelessness
South Ribble Council,http://Statistics.Data.gov.uk\Doc\Local Authority\30UN,19/07/2023,520.00,Premier Inn Preston South (Craven Drive),NAME REDACTED Premier Inn Preston South (Cr,Accomodation,124050,COMU - Communities,JBC - Homelessness
South Ribble Council,http://Statistics.Data.gov.uk\Doc\Local Authority\30UN,19/07/2023,600.00,Beacon Fell View Holiday Park PR3 2TF,NAME REDACTED Beacon Fell View Holiday Park,Accomodation,124050,COMU - Communities,JBC - Homelessness
South Ribble Council,http://Statistics.Data.gov.uk\Doc\Local Authority\30UN,19/07/2023,655.50,Premier Inn Preston Central PR1 2AB,NAME REDACTED Premier Inn Preston Central P,Accomodation,124050,COMU - Communities,JBC - Homelessness
South Ribble Council,http://Statistics.Data.gov.uk\Doc\Local Authority\30UN,20/07/2023,-520.00,Premier Inn Preston South PR5 6BZ,refund CC Premier Inn Preston South PR5 6BZ 22.07.23 - 28.07.23 SR,Accomodation,124050,COMU - Communities,JBC - Homelessness
South Ribble Council,http://Statistics.Data.gov.uk\Doc\Local Authority\30UN,20/07/2023,112.18,Travelodge Preston Central PR1 5NX,NAME REDACTED Travelodge Preston Central PR,Accomodation,124250,COMU - Communities,JBC - Homelessness
South Ribble Council,http://Statistics.Data.gov.uk\Doc\Local Authority\30UN,20/07/2023,368.16,Travelodge Preston Central PR1 5NX,NAME REDACTED Travelodge Preston Central PR,Accomodation,124050,COMU - Communities,JBC - Homelessness
South Ribble Council,http://Statistics.Data.gov.uk\Doc\Local Authority\30UN,20/07/2023,496.66,Travelodge Preston Central PR1 5NX,NAME REDACTED Travelodge Preston Central PR,Accomodation,124050,COMU - Communities,JBC - Homelessness
South Ribble Council,http://Statistics.Data.gov.uk\Doc\Local Authority\30UN,20/07/2023,"1,036.17",Travelodge Preston Central PR1 5NX,NAMES REDACTED (two rooms) Travelodge Preston Central PR1 5NX,Accomodation,124050,COMU - Communities,JBC - Homelessness
South Ribble Council,http://Statistics.Data.gov.uk\Doc\Local Authority\30UN,21/07/2023,731.00,Holiday Inn Express Preston South PR58AA,NAME REDACTED Holiday Inn Express Preston S,Accomodation,124050,COMU - Communities,JBC - Homelessness
South Ribble Council,http://Statistics.Data.gov.uk\Doc\Local Authority\30UN,24/07/2023,516.04,Travelodge Preston Central PR1 5NX,NAME REDACTED Travelodge Preston Central PR,Accomodation,124050,COMU - Communities,JBC - Homelessness
South Ribble Council,http://Statistics.Data.gov.uk\Doc\Local Authority\30UN,31/07/2023,8.55,Trainline,NAME REDACTED train tickets - Southport to ,Travel,124050,COMU - Communities,JBC - Homelessness
South Ribble Council,http://Statistics.Data.gov.uk\Doc\Local Authority\30UN,31/07/2023,155.00,Premier Inn Wigan M6 Jct 27 WN6 0SS,NAME REDACTED Premier Inn Wigan M6 Jct 27 W,Accomodation,124050,COMU - Communities,JBC - Homelessness
South Ribble Council,http://Statistics.Data.gov.uk\Doc\Local Authority\30UN,31/07/2023,634.35,Travelodge Preston Central PR1 5NX,NAME REDACTED Travelodge Preston Central PR,Accomodation,124050,COMU - Communities,JBC - Homelessness
South Ribble Council,http://Statistics.Data.gov.uk\Doc\Local Authority\30UN,31/07/2023,701.00,Holiday Inn Express Preston South PR58AA,NAME REDACTED and BJ Holiday Inn Express Pr,Accomodation,124050,COMU - Communities,JBC - Homelessness
South Ribble Council,http://Statistics.Data.gov.uk\Doc\Local Authority\30UN,02/08/2023,74.80,Premier Inn Preston Central PR1 2AB,NAME REDACTED Premier Inn Preston Central P,Accomodation,124250,COMU - Communities,JBC - Homelessness
South Ribble Council,http://Statistics.Data.gov.uk\Doc\Local Authority\30UN,02/08/2023,648.65,Travelodge Preston Central PR1 5NX,NAME REDACTED and JT Travelodge Preston Cen,Accomodation,124050,COMU - Communities,JBC - Homelessness
South Ribble Council,http://Statistics.Data.gov.uk\Doc\Local Authority\30UN,03/08/2023,698.00,Holiday Inn Express Preston South PR58AA,NAME REDACTED Holiday Inn Express Preston S,Accomodation,124050,COMU - Communities,JBC - Homelessness
South Ribble Council,http://Statistics.Data.gov.uk\Doc\Local Authority\30UN,03/08/2023,"1,613.30",Riverside Holiday Park PR9 8DF,NAME REDACTED Riverside Holiday Park PR9 8D,Accomodation,124050,COMU - Communities,JBC - Homelessness
South Ribble Council,http://Statistics.Data.gov.uk\Doc\Local Authority\30UN,07/08/2023,487.48,Travelodge Preston Central PR1 5NX,NAME REDACTED Travelodge Preston Central PR,Accomodation,124050,COMU - Communities,JBC - Homelessness
South Ribble Council,http://Statistics.Data.gov.uk\Doc\Local Authority\30UN,07/08/2023,538.00,Premier Inn Preston Central PR1 2AB,NAME REDACTED Premier Inn Preston Central P,Accomodation,124050,COMU - Communities,JBC - Homelessness
South Ribble Council,http://Statistics.Data.gov.uk\Doc\Local Authority\30UN,07/08/2023,766.00,Holiday Inn Express Preston South PR58AA,NAMES REDACTED Holiday Inn Express Preston South PR5 8AA,Accomodation,124050,COMU - Communities,JBC - Homelessness
South Ribble Council,http://Statistics.Data.gov.uk\Doc\Local Authority\30UN,08/08/2023,250.88,Travelodge Preston Central PR1 5NX,NAME REDACTED Travelodge Preston Central PR,Accomodation,124050,COMU - Communities,JBC - Homelessness
South Ribble Council,http://Statistics.Data.gov.uk\Doc\Local Authority\30UN,08/08/2023,507.88,Travelodge Preston Central PR1 5NX,NAME REDACTED Travelodge Preston Central PR,Accomodation,124050,COMU - Communities,JBC - Homelessness
South Ribble Council,http://Statistics.Data.gov.uk\Doc\Local Authority\30UN,09/08/2023,-204.00,Holiday Inn Express Preston South PR58AA,Holiday Inn Express Preston South refund issued,Refund,124050,COMU - Communities,JBC - Homelessness
South Ribble Council,http://Statistics.Data.gov.uk\Doc\Local Authority\30UN,10/08/2023,291.00,Premier Inn Bolton Stadium Arena BL6 6LB,NAME REDACTED Premier Inn Bolton Stadium Ar,Accomodation,124050,COMU - Communities,JBC - Homelessness
South Ribble Council,http://Statistics.Data.gov.uk\Doc\Local Authority\30UN,10/08/2023,387.55,Travelodge Preston Central PR1 5NX,NAME REDACTED Travelodge Preston Central PR,Accomodation,124050,COMU - Communities,JBC - Homelessness
South Ribble Council,http://Statistics.Data.gov.uk\Doc\Local Authority\30UN,10/08/2023,773.07,Travelodge Preston Central PR1 5NX,NAME REDACTED and JT Travelodge Preston Cen,Accomodation,124050,COMU - Communities,JBC - Homelessness
South Ribble Council,http://Statistics.Data.gov.uk\Doc\Local Authority\30UN,14/08/2023,61.20,Premier Inn Preston Central PR1 2AB,NAME REDACTED Premier Inn Preston Central P,Accomodation,124050,COMU - Communities,JBC - Homelessness
South Ribble Council,http://Statistics.Data.gov.uk\Doc\Local Authority\30UN,14/08/2023,66.28,Travelodge Blackburn M65 BB3 0DB,NAME REDACTED Travelodge Blackburn M65 BB3 ,Accomodation,124050,COMU - Communities,JBC - Homelessness
South Ribble Council,http://Statistics.Data.gov.uk\Doc\Local Authority\30UN,29/08/2023,73.95,Premier Inn Preston Central PR1 2AB,NAME REDACTED Premier Inn Preston Central P,Accomodation,124050,COMU - Communities,JBC - Homelessness
South Ribble Council,http://Statistics.Data.gov.uk\Doc\Local Authority\30UN,04/07/2023,600.00,Beacon Fell View Holiday Park PR3 2TF,NAME REDACTED Beacon Fell View Holiday Park,Accomodation,124050,COMU - Communities,JBC - Homelessness
South Ribble Council,http://Statistics.Data.gov.uk\Doc\Local Authority\30UN,04/07/2023,607.00,Premier Inn Preston South PR5 6BZ,NAME REDACTED Premier Inn Preston South PR5,Accomodation,124050,COMU - Communities,JBC - Homelessness
South Ribble Council,http://Statistics.Data.gov.uk\Doc\Local Authority\30UN,04/07/2023,"1,214.00",Premier Inn Preston South (Craven Drive),NAME REDACTED AT Premier Inn Preston South ,Accomodation,124050,COMU - Communities,JBC - Homelessness
South Ribble Council,http://Statistics.Data.gov.uk\Doc\Local Authority\30UN,21/07/2023,483.00,Winckley Sq Residences - Moneypenny Prop,NAME REDACTED Magnolia Residence - Winckley,Accomodation,124050,COMU - Communities,JBC - Homelessness
South Ribble Council,http://Statistics.Data.gov.uk\Doc\Local Authority\30UN,26/07/2023,803.64,Travelodge Preston Central PR1 5NX,NAME REDACTED Travelodge Preston Central PR,Accomodation,124050,COMU - Communities,JBC - Homelessness
South Ribble Council,http://Statistics.Data.gov.uk\Doc\Local Authority\30UN,27/07/2023,717.00,Holiday Inn Express Preston South,NAME REDACTED Holiday Inn Express Preston S,Accomodation,124050,COMU - Communities,JBC - Homelessness
South Ribble Council,http://Statistics.Data.gov.uk\Doc\Local Authority\30UN,02/08/2023,74.80,Premier Inn Preston Central PR1 2AB,NAME REDACTED Premier Inn Preston Central P,Accomodation,124250,COMU - Communities,JBC - Homelessness
South Ribble Council,http://Statistics.Data.gov.uk\Doc\Local Authority\30UN,07/08/2023,365.00,ibis Preston North PR3 5JE,NAME REDACTED ibis Preston North PR3 5JE 07,Accomodation,124050,COMU - Communities,JBC - Homelessness
South Ribble Council,http://Statistics.Data.gov.uk\Doc\Local Authority\30UN,07/08/2023,480.00,ibis Preston North PR3 5JE,NAME REDACTED ibis Preston North PR3 5JE 08,Accomodation,124050,COMU - Communities,JBC - Homelessness
South Ribble Council,http://Statistics.Data.gov.uk\Doc\Local Authority\30UN,15/08/2023,600.00,Beacon Fell View Holiday Park,NAME REDACTED Beacon Fell View Holiday Park,Accomodation,124050,COMU - Communities,JBC - Homelessness
South Ribble Council,http://Statistics.Data.gov.uk\Doc\Local Authority\30UN,17/08/2023,3.50,West Midlands Rail,Officer booking train travel to attend White Ribbon UK Conference in Birmingham on 26th September 2023 (2),Rail Fare,124950,COMU - Communities,JBC - Homelessness
South Ribble Council,http://Statistics.Data.gov.uk\Doc\Local Authority\30UN,17/08/2023,63.30,Avanti West Coast Trains,Officer booking train travel to attend White Ribbon UK Conference in Birmingham on 26th September 2024,Rail Fare,124950,COMU - Communities,JBC - Homelessness
South Ribble Council,http://Statistics.Data.gov.uk\Doc\Local Authority\30UN,19/07/2023,80.00,Purple Roomz,Hotel Accommodation NAME REDACTED - homeless Booking Reference 3558404884,Online Purchase,124050,COMU - Communities,JBA - Community Involvement
South Ribble Council,http://Statistics.Data.gov.uk\Doc\Local Authority\30UN,27/09/2023,322.50,DVLA,Vehicle Tax VIN REDACTED,Road Tax,172300,CDIG - Customer & Digital,JCE - Transport
South Ribble Council,http://Statistics.Data.gov.uk\Doc\Local Authority\30UN,27/09/2023,322.50,DVLA,Vehicle Tax VIN REDACTED,Road Tax,114000,CDIG - Customer & Digital,JCE - Transport
South Ribble Council,http://Statistics.Data.gov.uk\Doc\Local Authority\30UN,27/09/2023,322.50,DVLA,Vehicle Tax VIN REDACTED,Road Tax,174300,CDIG - Customer & Digital,JCE - Transport
South Ribble Council,http://Statistics.Data.gov.uk\Doc\Local Authority\30UN,15/07/2023,154.70,Premier Inn,3 nights accommodation @ Premier Inn (Preston) on behalf of New Progress Housing.,Accomodation,124050,CDIG - Customer & Digital,JCE - Transport
South Ribble Council,http://Statistics.Data.gov.uk\Doc\Local Authority\30UN,27/07/2023,302.50,DVLA,Road tax Jul 23 - VIN REDACTED,Online Purchase,172810,CDIG - Customer & Digital,JCE - Transport
South Ribble Council,http://Statistics.Data.gov.uk\Doc\Local Authority\30UN,27/07/2023,322.50,DVLA,Road tax Jul 23 - VIN REDACTED,Online Purchase,172400,CDIG - Customer & Digital,JCE - Transport
South Ribble Council,http://Statistics.Data.gov.uk\Doc\Local Authority\30UN,27/07/2023,322.50,DVLA,Road tax Jul 23 - VIN REDACTED,Online Purchase,172400,CDIG - Customer & Digital,JCE - Transport
South Ribble Council,http://Statistics.Data.gov.uk\Doc\Local Authority\30UN,27/07/2023,322.50,DVLA,Road tax Jul 23 - VIN REDACTED,Online Purchase,172400,CDIG - Customer & Digital,JCE - Transport
South Ribble Council,http://Statistics.Data.gov.uk\Doc\Local Authority\30UN,27/07/2023,322.50,DVLA,Road tax Jul 23 - VIN REDACTED,Online Purchase,172840,CDIG - Customer & Digital,JCE - Transport
South Ribble Council,http://Statistics.Data.gov.uk\Doc\Local Authority\30UN,27/07/2023,322.50,DVLA,Road tax Jul 23 - VIN REDACTED,Online Purchase,172600,CDIG - Customer & Digital,JCE - Transport
South Ribble Council,http://Statistics.Data.gov.uk\Doc\Local Authority\30UN,18/08/2023,102.50,DVSA,MOT SLOTS x 51,Online Purchase,172600,CDIG - Customer & Digital,JCE - Transport
South Ribble Council,http://Statistics.Data.gov.uk\Doc\Local Authority\30UN,29/08/2023,202.50,DVLA,Road Tax August 23 - VIN REDACTED,Online Purchase,172400,CDIG - Customer & Digital,JCE - Transport
South Ribble Council,http://Statistics.Data.gov.uk\Doc\Local Authority\30UN,29/08/2023,322.50,DVLA,Road Tax August 23 - VIN REDACTED,Online Purchase,173800,CDIG - Customer & Digital,JCE - Transport
South Ribble Council,http://Statistics.Data.gov.uk\Doc\Local Authority\30UN,29/08/2023,322.50,DVLA,Road Tax August 23 - VIN REDACTED,Online Purchase,172300,CDIG - Customer & Digital,JCE - Transport
South Ribble Council,http://Statistics.Data.gov.uk\Doc\Local Authority\30UN,29/08/2023,452.50,DVLA,Road Tax August 23 - VIN REDACTED,Online Purchase,172820,CDIG - Customer & Digital,JCE - Transport
South Ribble Council,http://Statistics.Data.gov.uk\Doc\Local Authority\30UN,09/09/2023,149.00,Premier Inn,Card payment for accommodation @ Premier Inn Preston for 2 nights.,Accomodation,124050,CDIG - Customer & Digital,JCE - Transport
South Ribble Council,http://Statistics.Data.gov.uk\Doc\Local Authority\30UN,12/09/2023,322.50,DVLA,Road Tax VIN REDACTED - Sept 24,Online Purchase,172300,CDIG - Customer & Digital,JCE - Transport
South Ribble Council,http://Statistics.Data.gov.uk\Doc\Local Authority\30UN,12/09/2023,322.50,DVLA,Road Tax Sept 23 - VIN REDACTED,Online Purchase,172300,CDIG - Customer & Digital,JCE - Transport
South Ribble Council,http://Statistics.Data.gov.uk\Doc\Local Authority\30UN,12/09/2023,452.50,DVLA,Road Tax VIN REDACTED - Sept 24,Online Purchase,172840,CDIG - Customer & Digital,JCE - Transport
South Ribble Council,http://Statistics.Data.gov.uk\Doc\Local Authority\30UN,12/09/2023,562.50,DVLA,Road Tax Sept 23 - VIN REDACTED,Online Purchase,143750,CDIG - Customer & Digital,JCE - Transport
South Ribble Council,http://Statistics.Data.gov.uk\Doc\Local Authority\30UN,05/09/2023,468.00,BiP solutions Limited,Procurement Roadshow training - Ciara & Tas - authorised by NAME REDACCTED,Online Purchase,142000,GOVE - Governance,JDE - Legal
South Ribble Council,http://Statistics.Data.gov.uk\Doc\Local Authority\30UN,19/09/2023,172.80,THOMSON REUTERS UK LIMITED,Purchase of JCT Contract,Online Purchase,142000,GOVE - Governance,JDE - Legal
South Ribble Council,http://Statistics.Data.gov.uk\Doc\Local Authority\30UN,04/07/2023,526.00,PortalPlanQuest Limited,"Payment for planning application service - application reference 16884865979489791 (application fee - 462 @0%VAT, Service Charge 53.33 VAT@20%)",Online Purchase,207088,CDIG - Customer & Digital,JCD - Neighbourhoods
South Ribble Council,http://Statistics.Data.gov.uk\Doc\Local Authority\30UN,27/07/2023,53.02,Travel Lodge,Out of Hours Accommodation Payment,Accomodation,124050,CDIG - Customer & Digital,JCD - Neighbourhoods
South Ribble Council,http://Statistics.Data.gov.uk\Doc\Local Authority\30UN,27/07/2023,70.55,Premier Inn,Out of Hours Accommodation Payment,Accomodation,124050,CDIG - Customer & Digital,JCD - Neighbourhoods
South Ribble Council,http://Statistics.Data.gov.uk\Doc\Local Authority\30UN,19/09/2023,85.85,Premier Inn,Out of Hours Accommodation Payment,Accomodation,124050,PDEV - Planning & Development,JEG - Parks & Open Space
South Ribble Council,http://Statistics.Data.gov.uk\Doc\Local Authority\30UN,23/09/2023,142.00,Premier Inn,Out of Hours Accommodation Payment for booking ref APJ9385019,Accomodation,124050,PDEV - Planning & Development,JEG - Parks & Open Space
South Ribble Council,http://Statistics.Data.gov.uk\Doc\Local Authority\30UN,25/08/2023,1.54,Meta,Facebook Ads (Adult Health Wellbeing) wrong spend Chorley transaction,Online Purchase,115250,POLY - Policy,JFA - Communications & Visitor
South Ribble Council,http://Statistics.Data.gov.uk\Doc\Local Authority\30UN,25/08/2023,22.77,Meta,Facebook Ads (wrong spend) check out chorley,Online Purchase,115250,POLY - Policy,JFA - Communications & Visitor
South Ribble Council,http://Statistics.Data.gov.uk\Doc\Local Authority\30UN,25/08/2023,53.91,Meta,Facebook Ads Markets (Chorley transaction wrong spend),Online Purchase,115250,POLY - Policy,JFA - Communications & Visitor
South Ribble Council,http://Statistics.Data.gov.uk\Doc\Local Authority\30UN,25/08/2023,79.87,Meta,Facebook Ads (leisure centres),Online Purchase,115250,POLY - Policy,JFA - Communications & Visitor
South Ribble Council,http://Statistics.Data.gov.uk\Doc\Local Authority\30UN,11/09/2023,11.12,Meta,Meta Facebook Ads Empowering (wrong spend),Online Purchase,115250,POLY - Policy,JFA - Communications & Visitor
South Ribble Council,http://Statistics.Data.gov.uk\Doc\Local Authority\30UN,11/09/2023,13.24,Meta,Facebook Ads Lesiure,Online Purchase,115250,POLY - Policy,JFA - Communications & Visitor
South Ribble Council,http://Statistics.Data.gov.uk\Doc\Local Authority\30UN,11/09/2023,13.54,Meta,Facebook Ads markets (wrong spend),Online Purchase,115250,POLY - Policy,JFA - Communications & Visitor
South Ribble Council,http://Statistics.Data.gov.uk\Doc\Local Authority\30UN,11/09/2023,36.96,Meta,Facebook Ads Lesiure,Online Purchase,115250,POLY - Policy,JFA - Communications & Visitor
South Ribble Council,http://Statistics.Data.gov.uk\Doc\Local Authority\30UN,11/09/2023,73.67,Meta,Facebook Ads check out chorley (wrong spend),Online Purchase,115250,POLY - Policy,JFA - Communications & Visitor
South Ribble Council,http://Statistics.Data.gov.uk\Doc\Local Authority\30UN,11/09/2023,151.47,Meta,Facebook Ads ATOL,Online Purchase,114100,POLY - Policy,JFA - Communications & Visitor
South Ribble Council,http://Statistics.Data.gov.uk\Doc\Local Authority\30UN,04/07/2023,"2,027.11",Pete Marquis,Outstanding invoice,Online Purchase,207094,GOVE - Governance,JDC - Corporate Support
South Ribble Council,http://Statistics.Data.gov.uk\Doc\Local Authority\30UN,02/08/2023,14.44,Amazon,6mm Label sticker for machine x 3 packs,Online Purchase,141100,GOVE - Governance,JDC - Corporate Support
South Ribble Council,http://Statistics.Data.gov.uk\Doc\Local Authority\30UN,08/08/2023,38.29,Amazon,6mm Label sticker for machine x 9 packs,Online Purchase,141100,GOVE - Governance,JDC - Corporate Support
South Ribble Council,http://Statistics.Data.gov.uk\Doc\Local Authority\30UN,16/08/2023,216.00,TCPA,"TCPA webinar: An introduction to planning reform for elected councillors,13th September",Online Purchase,143700,GOVE - Governance,JDC - Corporate Support
South Ribble Council,http://Statistics.Data.gov.uk\Doc\Local Authority\30UN,17/08/2023,-108.00,TCPA,"Refund of payment for one: TCPA webinar: An introduction to planning reform for elected councillors,13th September",Refund,143700,GOVE - Governance,JDC - Corporate Support
South Ribble Council,http://Statistics.Data.gov.uk\Doc\Local Authority\30UN,08/07/2023,9.00,EE,EE top up waste,Online Purchase,133000,CDIG - Customer & Digital,JCC - Information Services
South Ribble Council,http://Statistics.Data.gov.uk\Doc\Local Authority\30UN,11/07/2023,"3,091.04",Microsoft,Microsoft clod fees,Online Purchase,133000,CDIG - Customer & Digital,JCC - Information Services
South Ribble Council,http://Statistics.Data.gov.uk\Doc\Local Authority\30UN,16/07/2023,68.42,Scribe,Scribe,Online Purchase,133000,CDIG - Customer & Digital,JCC - Information Services
South Ribble Council,http://Statistics.Data.gov.uk\Doc\Local Authority\30UN,24/07/2023,233.82,Zoom Video Communications,Zoom,Online Purchase,133000,CDIG - Customer & Digital,JCC - Information Services
South Ribble Council,http://Statistics.Data.gov.uk\Doc\Local Authority\30UN,04/07/2023,-0.07,Travelodge Preston Central PR1 5NX,refund due to admin error at Travelodge,Refund,124050,COMU - Communities,JBC - Homelessness
South Ribble Council,http://Statistics.Data.gov.uk\Doc\Local Authority\30UN,04/07/2023,193.07,Travelodge Preston Central PR1 5NX,NAME REDACTED Travelodge Preston Central 04,Accomodation,124050,COMU - Communities,JBC - Homelessness
South Ribble Council,http://Statistics.Data.gov.uk\Doc\Local Authority\30UN,04/07/2023,453.82,Travelodge Preston Chorley PR6 7JB,NAME REDACTED Travelodge Preston Chorley PR,Accomodation,124050,COMU - Communities,JBC - Homelessness
South Ribble Council,http://Statistics.Data.gov.uk\Doc\Local Authority\30UN,04/07/2023,483.00,Winckley Square Residences PR1 3NA,NAME REDACTED Winckley Square Residences PR,Accomodation,124050,COMU - Communities,JBC - Homelessness
South Ribble Council,http://Statistics.Data.gov.uk\Doc\Local Authority\30UN,04/07/2023,607.00,Premier Inn Preston South PR5 6BZ,NAME REDACTED Premier Inn Preston South PR5,Accomodation,124050,COMU - Communities,JBC - Homelessness
South Ribble Council,http://Statistics.Data.gov.uk\Doc\Local Authority\30UN,04/07/2023,607.00,Premier Inn Preston South (Craven Drive),NAME REDACTED Premier Inn Preston South (Cr,Accomodation,124050,COMU - Communities,JBC - Homelessness
South Ribble Council,http://Statistics.Data.gov.uk\Doc\Local Authority\30UN,20/07/2023,320.23,Travelodge Preston Central PR1 5NX,NAME REDACTED Travelodge Preston Central PR,Accomodation,124050,COMU - Communities,JBC - Homelessness
South Ribble Council,http://Statistics.Data.gov.uk\Doc\Local Authority\30UN,24/07/2023,516.04,Travelodge Preston Central PR1 5NX,NAME REDACTED Travelodge Preston Central PR,Accomodation,124050,COMU - Communities,JBC - Homelessness
South Ribble Council,http://Statistics.Data.gov.uk\Doc\Local Authority\30UN,25/07/2023,515.50,Premier Inn Preston Central PR1 2AB,NAME REDACTED Premier Inn Preston Central P,Accomodation,124050,COMU - Communities,JBC - Homelessness
South Ribble Council,http://Statistics.Data.gov.uk\Doc\Local Authority\30UN,28/07/2023,483.00,Winckley Square Residences PR1 3NA,NAME REDACTED Winckley Square Residences PR,Accomodation,124050,COMU - Communities,JBC - Homelessness
South Ribble Council,http://Statistics.Data.gov.uk\Doc\Local Authority\30UN,31/07/2023,526.24,Travelodge Preston Central PR1 5NX,NAME REDACTED Travelodge Preston Central PR,Accomodation,124050,COMU - Communities,JBC - Homelessness
South Ribble Council,http://Statistics.Data.gov.uk\Doc\Local Authority\30UN,07/08/2023,76.48,Travelodge Lytham St Annes FY8 1LP,NAME REDACTED Travelodge Lytham St Annes FY,Accomodation,124050,COMU - Communities,JBC - Homelessness
South Ribble Council,http://Statistics.Data.gov.uk\Doc\Local Authority\30UN,07/08/2023,470.14,Travelodge Preston Central PR1 5NX,NAME REDACTED Travelodge Preston Central PR,Accomodation,124050,COMU - Communities,JBC - Homelessness
South Ribble Council,http://Statistics.Data.gov.uk\Doc\Local Authority\30UN,14/08/2023,483.00,Winckley Square Residences PR1 3NA,NAME REDACTED Winckley Square Residences PR,Accomodation,124050,COMU - Communities,JBC - Homelessness
South Ribble Council,http://Statistics.Data.gov.uk\Doc\Local Authority\30UN,22/09/2023,286.45,"Premier Inn, Preston Central PR1 2AB",NAME REDACTED Conville Premier INN Preston ,Accomodation,124050,COMU - Communities,JBC - Homelessness
South Ribble Council,http://Statistics.Data.gov.uk\Doc\Local Authority\30UN,04/07/2023,101.15,Premier Inn Preston South (Craven Drive),NAME REDACTED Premier Inn Preston South (Cr,Accomodation,124250,COMU - Communities,JBC - Homelessness
South Ribble Council,http://Statistics.Data.gov.uk\Doc\Local Authority\30UN,04/07/2023,101.15,Premier Inn Preston South (Craven Drive),NAME REDACTED Premier Inn Preston South (Cr,Accomodation,124250,COMU - Communities,JBC - Homelessness
South Ribble Council,http://Statistics.Data.gov.uk\Doc\Local Authority\30UN,04/07/2023,101.15,Premier Inn Preston South (Craven Drive),NAME REDACTED Premier Inn Preston South (Cr,Accomodation,124250,COMU - Communities,JBC - Homelessness
South Ribble Council,http://Statistics.Data.gov.uk\Doc\Local Authority\30UN,04/07/2023,101.15,Premier Inn Preston South (Craven Drive),NAME REDACTED Premier Inn Preston South (Cr,Accomodation,124250,COMU - Communities,JBC - Homelessness
South Ribble Council,http://Statistics.Data.gov.uk\Doc\Local Authority\30UN,10/07/2023,155.09,EB WHITE RIBBON UK CONFERENCE,White Ribbon UK Conference 2023 Ticket for NAME REDACTED in SRBC Housing,Online Purchase,124950,COMU - Communities,JBC - Homelessness
South Ribble Council,http://Statistics.Data.gov.uk\Doc\Local Authority\30UN,10/07/2023,206.55,Premier Inn Preston South PR5 6BZ,NAME REDACTED Premier Inn Preston South PR5,Accomodation,124050,COMU - Communities,JBC - Homelessness
South Ribble Council,http://Statistics.Data.gov.uk\Doc\Local Authority\30UN,13/07/2023,67.15,Premier Inn Chorley North PR6 8AB,NAME REDACTED Premier Inn Chorley North PR6,Accomodation,124250,COMU - Communities,JBC - Homelessness
South Ribble Council,http://Statistics.Data.gov.uk\Doc\Local Authority\30UN,13/07/2023,77.35,Premier Inn Preston South (Craven Drive),NAME REDACTED Premier Inn Preston South (Cr,Accomodation,124250,COMU - Communities,JBC - Homelessness
South Ribble Council,http://Statistics.Data.gov.uk\Doc\Local Authority\30UN,13/07/2023,600.00,Premier Inn Preston South (Craven Drive),NAME REDACTED Premier Inn Preston South (Cr,Accomodation,124050,COMU - Communities,JBC - Homelessness
South Ribble Council,http://Statistics.Data.gov.uk\Doc\Local Authority\30UN,13/07/2023,600.00,Premier Inn Preston South (Craven Drive),NAME REDACTED Premier Inn Preston South (Cr,Accomodation,124050,COMU - Communities,JBC - Homelessness
South Ribble Council,http://Statistics.Data.gov.uk\Doc\Local Authority\30UN,14/07/2023,210.80,JH Premier Inn Preston South PR5 6BZ 14.,NAME REDACTED Premier Inn Preston South PR5,Accomodation,124250,COMU - Communities,JBC - Homelessness
South Ribble Council,http://Statistics.Data.gov.uk\Doc\Local Authority\30UN,14/07/2023,636.00,Premier Inn Preston South PR5 6BZ,NAME REDACTED Premier Inn Preston South PR5,Accomodation,124050,COMU - Communities,JBC - Homelessness
South Ribble Council,http://Statistics.Data.gov.uk\Doc\Local Authority\30UN,17/07/2023,69.70,Premier Inn Wigan M6 Jct 27,NAME REDACTED Premier Inn Wigan M6 Jct 27 1,Accomodation,124250,COMU - Communities,JBC - Homelessness
South Ribble Council,http://Statistics.Data.gov.uk\Doc\Local Authority\30UN,17/07/2023,76.50,Premier Inn Chorley North PR6 8AB,NAME REDACTED Premier Inn Chorley North PR6,Accomodation,124250,COMU - Communities,JBC - Homelessness
South Ribble Council,http://Statistics.Data.gov.uk\Doc\Local Authority\30UN,18/07/2023,559.00,Premier Inn Preston South (Craven Drive),NAME REDACTED Premier Inn Preston South (Cr,Accomodation,124050,COMU - Communities,JBC - Homelessness
South Ribble Council,http://Statistics.Data.gov.uk\Doc\Local Authority\30UN,01/08/2023,152.97,Travelodge Preston Central PR1 5NX,NAME REDACTED Travelodge Preston Central PR1 5NX 06.08.23 - 07.08.23,Accomodation,124050,COMU - Communities,JBC - Homelessness
South Ribble Council,http://Statistics.Data.gov.uk\Doc\Local Authority\30UN,01/08/2023,391.85,Premier Inn Preston Central PR1 2AB,NAME REDACTED Premier Inn Preston Central P,Accomodation,124050,COMU - Communities,JBC - Homelessness
South Ribble Council,http://Statistics.Data.gov.uk\Doc\Local Authority\30UN,01/08/2023,649.66,Travelodge Preston Central PR1 5NX,NAME REDACTED Travelodge Preston Central PR,Accomodation,124050,COMU - Communities,JBC - Homelessness
South Ribble Council,http://Statistics.Data.gov.uk\Doc\Local Authority\30UN,01/08/2023,"1,200.00",Beacon Fell View Holiday Park,NAME REDACTED Beacon Fell View Holiday Park,Accomodation,124050,COMU - Communities,JBC - Homelessness
South Ribble Council,http://Statistics.Data.gov.uk\Doc\Local Authority\30UN,03/08/2023,76.50,Premier Inn Preston Central PR1 2AB,NAME REDACTED Premier Inn Preston Central P,Accomodation,124250,COMU - Communities,JBC - Homelessness
South Ribble Council,http://Statistics.Data.gov.uk\Doc\Local Authority\30UN,03/08/2023,76.50,Premier Inn Preston Central PR1 2AB,NAME REDACTED Premier Inn Preston Central P,Accomodation,124250,COMU - Communities,JBC - Homelessness
South Ribble Council,http://Statistics.Data.gov.uk\Doc\Local Authority\30UN,04/08/2023,240.55,Premier Inn Preston Central PR1 2AB,NAME REDACTED Premier Inn Preston Central P,Accomodation,124250,COMU - Communities,JBC - Homelessness
South Ribble Council,http://Statistics.Data.gov.uk\Doc\Local Authority\30UN,04/08/2023,240.55,Premier Inn Preston Central PR1 2AB,NAME REDACTED Premier Inn Preston Central P,Accomodation,124250,COMU - Communities,JBC - Homelessness
South Ribble Council,http://Statistics.Data.gov.uk\Doc\Local Authority\30UN,08/08/2023,163.20,Premier Inn Preston Central PR1 2AB,NAME REDACTED Premier Inn Preston Central P,Accomodation,124050,COMU - Communities,JBC - Homelessness
South Ribble Council,http://Statistics.Data.gov.uk\Doc\Local Authority\30UN,08/08/2023,600.00,Beacon Fell View Holiday Park,NAME REDACTED Beacon Fell View Holiday Park,Accomodation,124050,COMU - Communities,JBC - Homelessness
South Ribble Council,http://Statistics.Data.gov.uk\Doc\Local Authority\30UN,16/08/2023,68.85,Premier Inn Preston Central PR1 2AB,NAME REDACTED Premier Inn Preston Central P,Accomodation,124250,COMU - Communities,JBC - Homelessness
South Ribble Council,http://Statistics.Data.gov.uk\Doc\Local Authority\30UN,23/08/2023,68.85,Premier Inn Preston Central PR1 2AB,NAME REDACTED Premier Inn Preston Central P,Accomodation,124250,COMU - Communities,JBC - Homelessness
South Ribble Council,http://Statistics.Data.gov.uk\Doc\Local Authority\30UN,24/08/2023,81.60,Premier Inn Preston Central PR1 2AB,NAME REDACTED Premier Inn Preston Central P,Accomodation,124250,COMU - Communities,JBC - Homelessness
South Ribble Council,http://Statistics.Data.gov.uk\Doc\Local Authority\30UN,11/07/2023,303.00,Premier Inn Chorley North PR6 8AB,NAME REDACTED Premier Inn Chorley North PR6,Accomodation,124250,COMU - Communities,JBC - Homelessness
South Ribble Council,http://Statistics.Data.gov.uk\Doc\Local Authority\30UN,11/07/2023,"1,000.00",ibis Preston North PR3 5JE,NAME REDACTED and JT ibis Preston North PR3,Accomodation,124050,COMU - Communities,JBC - Homelessness
South Ribble Council,http://Statistics.Data.gov.uk\Doc\Local Authority\30UN,12/07/2023,619.00,Premier Inn Preston South (Craven Drive),NAME REDACTED Premier Inn Preston South (Cr,Accomodation,124050,COMU - Communities,JBC - Homelessness
South Ribble Council,http://Statistics.Data.gov.uk\Doc\Local Authority\30UN,13/07/2023,77.35,Premier Inn Preston South (Craven Drive),NAME REDACTED Premier Inn Preston South (Cr,Accomodation,124050,COMU - Communities,JBC - Homelessness
South Ribble Council,http://Statistics.Data.gov.uk\Doc\Local Authority\30UN,17/07/2023,619.00,Premier Inn Preston South (Craven Drive),NAME REDACTED Premier Inn Preston South (Cr,Accomodation,124050,COMU - Communities,JBC - Homelessness
South Ribble Council,http://Statistics.Data.gov.uk\Doc\Local Authority\30UN,25/07/2023,183.60,Premier Inn Southport Central PR8 1RY,NAME REDACTED Premier Inn Southport Central,Accomodation,124050,COMU - Communities,JBC - Homelessness
South Ribble Council,http://Statistics.Data.gov.uk\Doc\Local Authority\30UN,25/07/2023,476.26,Travelodge Preston Central PR1 5NX,NAME REDACTED Travelodge Preston Central PR,Accomodation,124050,COMU - Communities,JBC - Homelessness
South Ribble Council,http://Statistics.Data.gov.uk\Doc\Local Authority\30UN,26/07/2023,525.00,Premier Inn Preston Central PR1 2AB,NAME REDACTED Premier Inn Preston Central P,Accomodation,124050,COMU - Communities,JBC - Homelessness
South Ribble Council,http://Statistics.Data.gov.uk\Doc\Local Authority\30UN,27/07/2023,296.77,Travelodge Preston Central PR1 5NX,NAME REDACTED Travelodge Preston Central PR,Accomodation,124050,COMU - Communities,JBC - Homelessness
South Ribble Council,http://Statistics.Data.gov.uk\Doc\Local Authority\30UN,27/07/2023,481.00,Premier Inn Southport Central PR8 1RY,NAME REDACTED Premier Inn Southport Central,Accomodation,124050,COMU - Communities,JBC - Homelessness
South Ribble Council,http://Statistics.Data.gov.uk\Doc\Local Authority\30UN,12/09/2023,51.08,"Tesco Extra, Leyland",Purchase of food stuffs for PASTA Delivery sessions.,Store Purchase,113100,COMU - Communities,JBA - Community Involvement
South Ribble Council,http://Statistics.Data.gov.uk\Doc\Local Authority\30UN,27/09/2023,250.00,Huggg Ltd,Huggg Transfer of 250 for vouchers for Household Support Fund Step Up Grants,Online Purchase,101023,COMU - Communities,JBA - Community Involvement
South Ribble Council,http://Statistics.Data.gov.uk\Doc\Local Authority\30UN,11/08/2023,323.30,Travelodge Preston Central,Temporary accommodation hotel placement,Accomodation,124050,COMU - Communities,JBD - Housing Support
South Ribble Council,http://Statistics.Data.gov.uk\Doc\Local Authority\30UN,11/08/2023,324.32,Travelodge Preston Central,emergency accommodation hotel placement,Accomodation,124050,COMU - Communities,JBD - Housing Support
South Ribble Council,http://Statistics.Data.gov.uk\Doc\Local Authority\30UN,14/08/2023,456.88,Travelodge Preston Central,emergency accommodation hotel placement,Accomodation,124050,COMU - Communities,JBD - Housing Support
South Ribble Council,http://Statistics.Data.gov.uk\Doc\Local Authority\30UN,17/08/2023,76.5,Premier Inn Preston Central,emergency accommodation hotel placement,Accomodation,124250,COMU - Communities,JBD - Housing Support
South Ribble Council,http://Statistics.Data.gov.uk\Doc\Local Authority\30UN,22/08/2023,81.6,Premier Inn Preston Central,emergency accommodation hotel placement,Accomodation,124250,COMU - Communities,JBD - Housing Support
South Ribble Council,http://Statistics.Data.gov.uk\Doc\Local Authority\30UN,22/08/2023,182.54,Travelodge Preston Central,emergency accommodation hotel placement,Accomodation,124050,COMU - Communities,JBD - Housing Support
South Ribble Council,http://Statistics.Data.gov.uk\Doc\Local Authority\30UN,22/08/2023,1442.7,Riverside Caravan Park,emergency accommodation placement,Accomodation,124050,COMU - Communities,JBD - Housing Support
South Ribble Council,http://Statistics.Data.gov.uk\Doc\Local Authority\30UN,05/09/2023,1272,Riverside Caravan Park,emergency accommodation placement,Accomodation,124050,COMU - Communities,JBD - Housing Support
South Ribble Council,http://Statistics.Data.gov.uk\Doc\Local Authority\30UN,08/09/2023,180.5,Travelodge Preston Central,emergency accommodation hotel placement,Accomodation,124250,COMU - Communities,JBD - Housing Support
South Ribble Council,http://Statistics.Data.gov.uk\Doc\Local Authority\30UN,25/09/2023,67.3,Travelodge Preston Central,Hotel placement booking,Accomodation,124050,COMU - Communities,JBD - Housing Support
South Ribble Council,http://Statistics.Data.gov.uk\Doc\Local Authority\30UN,14/08/2023,691,Holiday Inn Express Bamber Bridge,"NAME REDACTEDHoliday Inn Express Bamber Bridge, PR5 8AA",Accomodation,124050,COMU - Communities,JBD - Housing Support
South Ribble Council,http://Statistics.Data.gov.uk\Doc\Local Authority\30UN,18/08/2023,260,Premier Inn Preston Central PR1 2AB,NAME REDACTED - Premier Inn Preston Central,Accomodation,124050,COMU - Communities,JBD - Housing Support
South Ribble Council,http://Statistics.Data.gov.uk\Doc\Local Authority\30UN,18/08/2023,681,Holiday Inn Express Bamber Bridge,NAME REDACTED Holiday Inn Express Bamber Bridge PR5 8AA,Accomodation,124050,COMU - Communities,JBD - Housing Support
South Ribble Council,http://Statistics.Data.gov.uk\Doc\Local Authority\30UN,21/08/2023,61.2,Premier Inn Preston Central PR1 2AB,NAME REDACTED - Premier Inn Preston Central,Accomodation,124050,COMU - Communities,JBD - Housing Support
South Ribble Council,http://Statistics.Data.gov.uk\Doc\Local Authority\30UN,25/08/2023,296.65,Premier Inn Preston Central PR1 2AB,NAME REDACTED - Premier Inn Preston Central,Accomodation,124050,COMU - Communities,JBD - Housing Support
South Ribble Council,http://Statistics.Data.gov.uk\Doc\Local Authority\30UN,25/08/2023,645,Holiday Inn Express Bamber Bridge,NAME REDACTED and BJ - Holiday Inn Express ,Accomodation,124050,COMU - Communities,JBD - Housing Support
South Ribble Council,http://Statistics.Data.gov.uk\Doc\Local Authority\30UN,31/08/2023,740,Holiday Inn Express Bamber Bridge,NAME REDACTED and BJ - Holiday Inn Express ,Accomodation,124050,COMU - Communities,JBD - Housing Support
South Ribble Council,http://Statistics.Data.gov.uk\Doc\Local Authority\30UN,14/09/2023,739.42,Travelodge Tewekesbury,NAME REDACTED - Travelodge Tewkesbury,Accomodation,124050,COMU - Communities,JBD - Housing Support
South Ribble Council,http://Statistics.Data.gov.uk\Doc\Local Authority\30UN,18/09/2023,675,Holiday Inn Express Bamber Bridge,Hotel accommodation for NAME REDACTED at Holiday Inn Express Bamber Bridge 19/09/23 - 26/09/24,Accomodation,124050,COMU - Communities,JBD - Housing Support
South Ribble Council,http://Statistics.Data.gov.uk\Doc\Local Authority\30UN,21/09/2023,542.56,Travelodge Tewekesbury,NAME REDACTED - Travelodge Tewkesbury,Accomodation,124050,COMU - Communities,JBD - Housing Support
South Ribble Council,http://Statistics.Data.gov.uk\Doc\Local Authority\30UN,26/09/2023,528.28,Travelodge Preston Central,NAME REDACTED phanie Robinson - Travelodge ,Accomodation,124050,COMU - Communities,JBD - Housing Support
South Ribble Council,http://Statistics.Data.gov.uk\Doc\Local Authority\30UN,26/09/2023,651,Holiday Inn Express Bamber Bridge,Hotel accommodation for NAME REDACTED at Holiday Inn Express Bamber Bridge - 26/09/23 - 03/10/24,Accomodation,124050,COMU - Communities,JBD - Housing Support
South Ribble Council,http://Statistics.Data.gov.uk\Doc\Local Authority\30UN,21/08/2023,483,Winckley Square Residences PR1 3NA,NAME REDACTED Winckley Square Residences PR,Accomodation,124050,COMU - Communities,JBC - Homelessness
South Ribble Council,http://Statistics.Data.gov.uk\Doc\Local Authority\30UN,22/08/2023,600,Beacon Fell View Holiday Park,NAME REDACTED Beacon Fell View Holiday Park,Accomodation,124050,COMU - Communities,JBC - Homelessness
South Ribble Council,http://Statistics.Data.gov.uk\Doc\Local Authority\30UN,25/08/2023,483,Winckley Square Residences PR1 3NA,NAME REDACTED Winckley Square Residences PR,Accomodation,124050,COMU - Communities,JBC - Homelessness
South Ribble Council,http://Statistics.Data.gov.uk\Doc\Local Authority\30UN,30/08/2023,483,Winckley Square Residences PR1 3NA,NAME REDACTED Winckley Square Residences PR,Accomodation,124050,COMU - Communities,JBC - Homelessness
South Ribble Council,http://Statistics.Data.gov.uk\Doc\Local Authority\30UN,11/09/2023,176.15,Tesco,NAME REDACTED co online order - Cotswold RS,Accomodation,124250,COMU - Communities,JBC - Homelessness
South Ribble Council,http://Statistics.Data.gov.uk\Doc\Local Authority\30UN,12/09/2023,483,Winckley Square Residences PR1 3NA,NAME REDACTED Winckley Square Residences PR,Accomodation,124050,COMU - Communities,JBC - Homelessness
South Ribble Council,http://Statistics.Data.gov.uk\Doc\Local Authority\30UN,19/09/2023,483,Winckley Square Residences PR1 3NA,NAME REDACTED Winckley Square Residences PR,Accomodation,124050,COMU - Communities,JBC - Homelessness
South Ribble Council,http://Statistics.Data.gov.uk\Doc\Local Authority\30UN,22/09/2023,483,Winckley Square Residences PR1 3NA,NAME REDACTED Winckley Square Residences PR,Accomodation,124050,COMU - Communities,JBC - Homelessness
South Ribble Council,http://Statistics.Data.gov.uk\Doc\Local Authority\30UN,26/09/2023,587.5,Premier Inn Preston Central PR1 2AB,NAME REDACTED Premier Inn Preston Central P,Accomodation,124050,COMU - Communities,JBC - Homelessness
South Ribble Council,http://Statistics.Data.gov.uk\Doc\Local Authority\30UN,26/09/2023,1200,Beacon Fell View Holiday Park PR3 2TF,NAME REDACTED Beacon Fell View Holiday Park,Accomodation,124050,COMU - Communities,JBC - Homelessness
South Ribble Council,http://Statistics.Data.gov.uk\Doc\Local Authority\30UN,27/09/2023,460.96,Travelodge Preston Central PR1 5NX,NAME REDACTED Travelodge Preston Central PR,Accomodation,114890,COMU - Communities,JBC - Homelessness
